{"text_format":"1","workbook":"xlsx","n_sheets":2,"sheets":["登録について","登録内訳"],"not_rendered":{"charts":0,"images":1,"macros":0,"external_links":0,"defined_names":1,"comments":1,"pivot_tables":0},"unopened":[],"bounds":{"document_bytes":16777216,"sheet_cells":100000,"rows_first":2000,"rows_last":500,"rows_between":2000,"halvings":0,"cell_chars":16384,"cell_head_chars":4096},"cells_cut":0,"cells_raw":0,"read":"whole","date_system":"1900"}

{"sheet":"登録について","index":0,"n_rows":154,"n_cols":16,"rows_kept":154,"cut":false,"hidden":false,"merged":[[153,5,153,13],[152,5,152,13],[150,5,150,13],[149,5,149,13],[91,5,91,13],[94,5,94,13],[100,5,100,13],[123,5,123,13],[144,0,144,13],[148,5,148,13],[57,3,57,4],[83,2,83,6],[83,7,83,13],[56,2,56,6],[14,0,14,13],[15,2,15,13],[25,0,25,13],[42,1,43,1],[21,3,21,13],[23,3,23,13],[19,0,19,13],[29,2,29,13],[27,0,27,4],[37,2,37,13],[41,0,41,4],[63,3,63,13],[79,2,79,13],[78,3,78,13],[69,9,69,10],[77,4,77,13],[71,3,71,7],[71,9,71,10],[56,7,61,13],[76,9,76,10],[147,5,147,13],[124,5,124,13],[138,5,138,13],[133,5,133,13],[134,5,134,13],[132,1,132,3],[132,5,132,13],[146,5,146,13],[135,5,135,13],[126,5,126,13],[142,0,142,13],[93,5,93,13],[99,1,99,3],[99,5,99,13],[105,5,105,13],[102,5,102,13],[127,5,127,13],[101,5,101,13],[64,4,64,13],[120,1,120,3],[111,5,111,13],[121,5,121,13],[109,1,109,3],[109,5,109,13],[114,5,114,13],[110,5,110,13],[115,5,115,13],[122,5,122,13],[80,2,80,6],[80,7,80,10],[80,11,80,12],[81,3,81,13],[64,2,64,3],[77,2,77,3],[137,5,137,13],[28,2,28,13],[85,0,85,13],[88,5,88,13],[90,5,90,13],[66,2,66,13],[89,5,89,13],[100,1,100,3],[101,1,101,3],[42,2,42,4],[84,0,84,13],[67,3,67,13],[68,0,68,2],[68,3,68,7],[68,9,68,10],[69,3,69,7],[82,2,82,13],[72,3,72,7],[72,9,72,10],[76,3,76,7],[120,5,120,13],[88,1,88,3],[104,5,104,13],[112,5,112,13],[22,2,22,13],[1,0,1,13],[2,0,2,13],[9,0,9,13],[11,2,11,13],[10,2,10,13],[55,0,55,4],[40,2,40,13],[43,3,43,4],[43,9,43,10],[17,0,17,13],[43,6,43,7],[42,5,42,7],[42,8,42,12],[32,2,32,13],[31,2,31,13],[35,2,35,13],[36,2,36,13],[75,3,75,7],[75,9,75,10],[70,3,70,7],[0,0,0,13],[3,0,3,13],[4,0,4,13],[12,2,12,13],[6,0,6,13],[16,0,16,13],[73,3,73,7],[73,9,73,10],[74,3,74,7],[39,2,39,13],[42,13,43,13],[54,1,54,13],[65,4,65,13],[74,9,74,10],[13,2,13,13],[70,9,70,10],[33,2,33,13],[30,2,30,13],[56,1,57,1],[26,0,26,13],[24,2,24,13]]}
[]
["2016-03-21"]
["チーム代表者　各位"]
["旭川地区サッカー協会　"]
["　　会長　  太　田　英　司"]
[]
["２０１６年度日本・北海道・旭川地区サッカー協会への登録手続きについて"]
[]
[]
["  ２０１６年度の協会登録につきまして、下記の通りにお願いいたします。１５年度からは、新KICK OFFへと大きくリニューアルされました。今年度は初めての継続申請になります。ガイドを熟読の上、入力漏れなどでチーム・選手が保留状態にならないように十分ご留意下さい。",null,null,null,null,null,null,null,null,null,null,null,null,null,null,"空白\n行の高さ調整用\n行"]
[null,"（１）","　KICK OFFを利用するためには，JFAが発行するID(JFA ID)が必要です。\n　まず，日本サッカー協会ホームページよりJFA IDを取得します。\n　対象は，チーム登録責任者，監督，コーチ，所属審判員です。取得には，名前，Eメールアドレス等を登録する必要があります。",null,null,null,null,null,null,null,null,null,null,null,null,"空白\n行の高さ調整用 行\n行\n行"]
[null,"（２）","　日本サッカー協会ホームページよりＷｅｂ登録を行います。\n　Ｗｅｂ登録に関しては記載漏れや誤りがあると一次承認ができず，チーム・選手が保留状態になり，大会参加に支障をきたすこととなりますので，十分ご留意下さい。",null,null,null,null,null,null,null,null,null,null,null,null,"空白\n行の高さ調整用\n 行"]
[null,"（３）","◎サッカーチーム登録については，Web登録と同時に登録費用を各種別登録担当者の口座（別紙１）に振り込んで下さい。また，『登録料振込内訳表』を指定された担当者へ送付して下さい。申請が承認された段階でメッセージが届き，手続きが完了します。各種別登録担当者と口座は別紙１の通りです。\n◎フットサルチーム登録については，Web登録と同時に『申請依頼書』を指定された担当者へ送付して下さい。Web登録が承認された段階で，登録料支払い手続きのメッセージが届きます。支払いが確認されれば，その旨のメッセージが届き，手続きが完了します。チーム登録料は，JFA登録料のみの負担になります。他のフットサル大会登録料については，大会毎に徴収されます(2015年と同じ)。",null,null,null,null,null,null,null,null,null,null,null,null,"空白\n行\n行\n行\n行\n行\n\n\n 行\n"]
[null,"（４）","監督登録料免除については，間違いのないようにお願いいたします。",null,null,null,null,null,null,null,null,null,null,null,null,"空白"]
["　以下に該当する場合は監督登録料が免除になります。\n　　既に公認指導者ﾗｲｾﾝｽ認定証が発行され，2016/1/31までに指導者登録費の自動引き落としが完了している方\n　　※第４種のチームの場合，コーチが有資格指導者として登録されても監督が無資格の場合は監督登録料が必要です。",null,null,null,null,null,null,null,null,null,null,null,null,null,null," \n \n \n"]
[null,null," ※チーム登録が保留になる場合：\n　JFA IDに資格を紐づけしていないが，監督登録料が免除であると考え、入金が不足している場合",null,null,null,null,null,null,null,null,null,null,null,null,"空白\n行の高さ調整用"]
["　サッカーチームの追加登録・抹消・チーム情報変更等に付きましては、５月１日以降(期日厳守)Ｗｅｂ上で作業し，旭川地区サッカー協会へ申請料を納付，申請依頼書を送付することになっています。\n　ご多忙とは存じますが，期限・期日厳守でよろしくお願いいたします。",null,null,null,null,null,null,null,null,null,null,null,null,null,null,"空白\n行の高さ調整用\n"]
["注)　追加登録とは，チーム登録が終了したあとに新たに選手を登録することです。"]
[]
["記"]
[]
["１．登録期日",null,null,"２０１６年４月８日（金）まで"]
[null,null,"※Ｗｅｂ登録と振込完了から，ＪＦＡに承認（最終的な登録完了）までには，７日程度の期間（土，日，祝日を含まない）が必要です。",null,null,null,null,null,null,null,null,null,null,null,null,"空白\n調整用"]
["２．送    金",null,null,"◎サッカーチーム登録　協会（日本・北海道・旭川）登録料\n　サッカー年鑑とテクニカルレポートの代金（高校チームのみ） ８,５００円\n　３種事業委員会運営費(U-15チームのみ)　２,０００円\n◎フットサルチーム登録　協会（日本）登録料\n　北海道および旭川地区登録料については，従来通り大会毎に納めます。\n",null,null,null,null,null,null,null,null,null,null,null,"空白\n調整用\n行\n行\n行"]
[null,null,"※サッカーチームのＷｅｂ登録と振込は，なるべく同じ日にしてください。確認作業が滞り，登録が大幅に遅れる場合があります。\n※フットサルチームの振込については，承認後，担当者へJFAからのメールで指示されます。",null,null,null,null,null,null,null,null,null,null,null,null,"空白\n調整用\n\n"]
["　振込名は，種別・チーム名がわかるようにご記入下さい(半角18文字まで)。\n　   【記入例：　  3_ｶﾑｲ_ﾂｼﾏ    ←　「３種 神居中学校 對馬」という意味】",null,null,null,null,null,null,null,null,null,null,null,null,null,null,"\n\n \n "]
["　※振込ミスのため，チームに連絡を取りたいが確認ができず登録が却下されるケースがあります。この場合，返金ができません。"]
["３．Ｗｅｂ登録上の注意"]
[null,"○","　年度切替にあたって，登録担当者を複数名体制にして下さい。１名体制で，その方が移動等で不在となり，チーム関連の申請ができなくなった，というケースが非常に多く報告されています。",null,null,null,null,null,null,null,null,null,null,null,null,"調整用\n　"]
[null,"○","　追加(新規)選手は，以前の登録の有無を検索して登録することになります。２重に選手番号を取得すると登録に支障が出る場合があります。",null,null,null,null,null,null,null,null,null,null,null,null,"調整用\n　"]
[null,"○","　１６年度より，シニア種の登録年度開始日が変更になります。",null,null,null,null,null,null,null,null,null,null,null,null,"調整用　"]
[null,"○","　追加登録・選手抹消・チーム情報変更等の手続きにおいても，ＡＦＡへ申請依頼書を提出します。",null,null,null,null,null,null,null,null,null,null,null,null,"調整用　"]
[null,"○","　KICK OFF入力を行ったが，登録の必要がなくなった場合は，ＡＦＡへ申請依頼書を提出します。",null,null,null,null,null,null,null,null,null,null,null,null,"調整用　"]
[null,"○","　Web登録に関する質問は，JFA 登録サービスデスク（050-2018-1990）までお願いします。\n　FAX番号：03-6682-5903　　Eメール：jentry_servicedesk@jfa.or.jp\n　登録に関連する情報は以下のサイトでご確認ください。　http://www.jfa.jp/registration/",null,null,null,null,null,null,null,null,null,null,null,null,"調整用\n行\n\n"]
["４．第４種チームの指導者ライセンス義務化について"]
[null,"（１）","　第４種チームは，監督またはコーチのいずれかが指導者資格を有していることが義務付けられています。",null,null,null,null,null,null,null,null,null,null,null,null,"空白"]
[null,"（２）","　指導者登録している監督は，必ず「指導者登録番号」を入力してください。",null,null,null,null,null,null,null,null,null,null,null,null,"空白"]
[null,"（３）","　監督が指導者資格を持っていない場合は，資格を持っている方をコーチとして登録して下さい。\nその際，コーチ欄（４種のみ）に必ず「指導者登録番号」を入力してください。",null,null,null,null,null,null,null,null,null,null,null,null,"空白\n"]
["５．大会参加申し込みに関する注意事項"]
[null,"○","大会参加申込書には，選手証に記載されている内容を正確に記入して下さい。",null,null,null,null,null,null,null,null,null,null,null,null,"調整用"]
[null,"○","サッカーチームのカード式の監督証・選手証の発送は，登録完了(JFAの承認が終了した時点)後となります。カードが未着・紛失，またはフットサルチームは電子登録証で対応することとなります。",null,null,null,null,null,null,null,null,null,null,null,null,"調整用\n\n行"]
["６．サッカーチームの送付金額"]
[null,"種    別","旭　川　協　会",null,null,"北 海 道 協 会",null,null,"日  本  協  会",null,null,null,null,"高校年鑑\nﾃｸﾆｶﾙﾚﾎﾟｰﾄ\n３種運営費"]
[null,null,"団　体","個人登録料",null,"団　体","個人登録料",null,"団　体","個人登録料",null,"機関誌","監　督"]
[null,"１種・社",15000,1000,"×人数",20000,500,"×人数",7000,2000,"×人数",5000,2000,0]
[null,"１種・大",15000,1000,"×人数",18000,500,"×人数",7000,2000,"×人数",5000,2000,0]
[null,"２種・高",15000,1000,"×人数",12000,300,"×人数",2500,1000,"×人数",5000,2000,8500]
[null,"３種・中",8000,1000,"×人数",3000,200,"×人数",2500,700,"×人数",5000,2000,2000]
[null,"４種・小",8000,1000,"×人数",3000,200,"×人数",2500,700,"×人数",5000,2000,0]
[null,"女子一般",15000,1000,"×人数",5000,500,"×人数",7000,2000,"×人数",5000,2000,0]
[null,"女子大学",15000,1000,"×人数",5000,500,"×人数",7000,2000,"×人数",5000,2000,0]
[null,"女子高校",15000,1000,"×人数",5000,300,"×人数",2500,1000,"×人数",5000,2000,8500]
[null,"女子中学",8000,1000,"×人数",3000,200,"×人数",2500,700,"×人数",5000,2000,2000]
[null,"シ ニ ア",15000,1000,"×人数",20000,500,"×人数",7000,1500,"×人数",5000,2000,0]
[null,"　高専および専門学校は，１種・大学と同じ区分になります。\n注)高専の生徒が高校の大会に出場するためには，高校年鑑およびテクニカルレポートに対する支払いが必要です。\n　女子チームで混合（一般・大学生が所属する）チームの場合は，登録区分は『女子一般』となります。団体登録料は一般と同じになりますが，個人登録料については、それぞれの該当区分にそった個人登録料を送金してください。\n",null,null,null,null,null,null,null,null,null,null,null,null,null,"空白\n調整用\n\n\n"]
["７．フットサルチームの送付金額"]
[null,"種    別","日  本  協  会",null,null,null,null,"　登録時に発生する登録料は，ＪＦＡ登録料のみです。2016年度は，監督料が免除されます。道協会および地区協会への登録料は，大会毎に徴収されます。\n　ユース年代のサッカーチームを対象とした「サッカーチームフットサル登録(見なし登録)」が実施されます。大会要項の定めにより，サッカーチームがそのままフットサル大会へ参加できます。"]
[null,null,"団　体","個人登録料",null,"機関誌","監　督"]
[null,"ﾌｯﾄｻﾙ１種",3000,1000,"×人数",5000,"免除"]
[null,"ﾌｯﾄｻﾙ２種",2000,700,"×人数",5000,"免除"]
[null,"ﾌｯﾄｻﾙ３種",2000,500,"×人数",5000,"免除"]
[null,"ﾌｯﾄｻﾙ４種",2000,500,"×人数",5000,"免除"]
[]
["８．その他の申請",null,null,"5月末までは，毎週火曜日。それ以降は，第2･第4火曜日に承認作業を行います。"]
[null,"（１）","追加登録　　　",null,"5月1日より，受付開始(期日厳守)"]
[null,null,null,null,"Web申請　→　個人登録料をAFAに納入　→　ｻｯｶｰﾁｰﾑ用申請依頼書をAFAに送付"]
[null,null,"サッカーチーム個人登録料（旭川・北海道・日本協会の計）"]
[null,null,null,"Ｗｅｂ申請　→　申請料をＡＦＡに納付　→　サッカーチーム用申請依頼書をＡＦＡに送付",null,null,null,null,null,null,null,null,null,null,null,"空白\n"]
[null,null,null,"○第１種（社会人・大学・専門学校）",null,null,null,null,"一人につき",{"$f":"D45+G45+J45","v":3500},null,"円"]
[null,null,null,"○第２種（高校・ユース）",null,null,null,null,"一人につき",{"$f":"D47+G47+J47","v":2300},null,"円"]
[null,null,null,"○第３種（中学・ユース）",null,null,null,null,"一人につき",1900,null,"円"]
[null,null,null,"○第４種（少年団）",null,null,null,null,"一人につき",1900,null,"円"]
[null,null,null,"○女子（一般）",null,null,null,null,"一人につき",3500,null,"円"]
[null,null,null,"○女子（大学）",null,null,null,null,"一人につき",3500,null,"円"]
[null,null,null,"○女子（高校生）",null,null,null,null,"一人につき",2300,null,"円"]
[null,null,null,"○女子（中学生）",null,null,null,null,"一人につき",1900,null,"円"]
[null,null,null,"○シニア",null,null,null,null,"一人につき",3000,null,"円"]
[null,"（２）","移籍申請",null,"個人登録料と同等額がかかります。5月1日より，受付開始(期日厳守)"]
[null,null,null,"Ｗｅｂ申請　→　申請料をＡＦＡに納付　→　申請依頼書をＡＦＡに送付",null,null,null,null,null,null,null,null,null,null,null,"空白"]
[null,null,"※『移籍登録申請』を利用すると，移籍元チームに抹消依頼通知が送信されます。\n※年度内の移籍は，選手登録にその都度個人登録料が発生します。",null,null,null,null,null,null,null,null,null,null,null,null,"空白\n\n"]
[null,"（３）","ユニフォーム広告掲示申請料",null,null,null,null,"1カ所につき",null,null,null,10800,null,"円"]
[null,null,null,"申請書(3-1または3-2)をAFAに提出 → 申請料をAFAに納付 → 申請依頼書をAFAに送付",null,null,null,null,null,null,null,null,null,null,null,"空白"]
[null,null,"※サッカー・フットサルでは申請用紙が異なります。道協会での審査が毎月20日頃に行われます。",null,null,null,null,null,null,null,null,null,null,null,null,"空白\n"]
[null,"（４）","抹消･チーム情報変更･申請取り消し(承認前)",null,null,null,null,"5月1日より,受付開始　　Web申請→申請依頼書をAFAに送付"]
["別紙１"]
["旭川地区サッカー協会種別登録担当者名（☆）及び登録金納入先（★）"]
[]
[]
[null,"第１種（社会人）",null,null,"☆","加　藤　文　隆",null,null,null,null,null,null,null,null,"加　藤　文　隆"]
[null,null,null,null,null,"　(Mail)　f-kato@nipponpapergroup.com",null,null,null,null,null,null,null,null,"メール"]
[null,null,null,null,null,"　(携帯)　090-6690-9105"]
[null,null,null,null,null,"メールで加藤宛に送付（振込領収書の貼り付けの必要なし）"]
[]
[null,null,null,null,"★","旭川信用金庫  本店  普通  口座番号  0866251",null,null,null,null,null,null,null,null,"旭川信用金庫  本店  普通"]
[null,null,null,null,null,"旭川社会人サッカー連盟　代表　加藤文隆",null,null,null,null,null,null,null,null,"旭川社会人サッカー連盟　代表　加藤文隆"]
[]
[]
[]
[]
[null,"第１種（大学・専門学校）",null,null,"☆","旭川地区サッカー協会事務局 大淵",null,null,null,null,null,null,null,null,"地区協会事務局 大淵"]
[null,"女子",null,null,null,"　(Mail)　afa-office@wind.ocn.ne.jp",null,null,null,null,null,null,null,null,"メール"]
[null,"シニア",null,null,null,"　(Fax)　0166-51-0122"]
[null,null,null,null,null,"メールで事務局 大淵宛に送付（振込領収書の貼り付けの必要なし）"]
[]
[null,null,null,null,"★","旭川信用金庫　銀座支店　普通　口座番号　0459411",null,null,null,null,null,null,null,null,"旭川信用金庫　銀座支店　普通"]
[null,null,null,null,null,"旭川地区サッカー協会　登録口　代表　板木京悦　(いたききょうえつ)",null,null,null,null,null,null,null,null,"旭川地区サッカー協会　登録口　代表　板木京悦"]
[]
[]
[]
[null,"第２種（高  校）",null,null,"☆","遠　藤　祥　悦　(えんどう しょういち)",null,null,null,null,null,null,null,null,"遠　藤　祥　悦"]
[null,null,null,null,null,"　(Fax)　0166-82-2534　東川高等学校内",null,null,null,null,null,null,null,null,"ＦＡＸ"]
[null,null,null,null,null,"　(Tel)　0166-82-2590　東川高等学校内　　",null,null,null,null,null,null,null,null,"貼る"]
[null,null,null,null,null,"振込領収書を添付の上、ＦＡＸで遠藤宛に送付"]
[]
[null,null,null,null,"★","旭川信用金庫　緑が丘支店　普通　口座番号　0366290",null,null,null,null,null,null,null,null,"旭川信用金庫　緑が丘支店　普通"]
[null,null,null,null,null,"旭川地区サッカー協会 ２種委員会 代表 遠藤祥悦",null,null,null,null,null,null,null,null,"旭川地区サッカー協会　２種委員会　代表　遠藤祥悦"]
[]
[]
[]
[]
[null,"第３種(中学校・ユース)",null,null,"☆","則　末　俊　介",null,null,null,null,null,null,null,null,"則　末　俊　介"]
[null,null,null,null,null,"　(Mail)　ns-nori@nagayama.jhs.asahikawa-hkd.ed.jp",null,null,null,null,null,null,null,null,"メール"]
[]
[null,null,null,null,null,"　(携帯)　090-5952-5998"]
[null,null,null,null,null,"メールで則末宛に送付（振込領収書の貼り付けの必要なし）"]
[]
[null,null,null,null,"★","旭川信用金庫  東旭川支店  普通  口座番号  0261361",null,null,null,null,null,null,null,null,"旭川信用金庫  東旭川支店  普通"]
[null,null,null,null,null,"旭川地区サッカー協会第３種事業委員会　則末俊介",null,null,null,null,null,null,null,null,"旭川地区サッカー協会第３種事業委員会　則末俊介"]
[]
[]
[]
[]
[null,"第４種（少年団）",null,null,"☆","田　中　雅　城",null,null,null,null,null,null,null,null,{"$f":"F133","v":"田　中　雅　城"}]
[null,null,null,null,null,"　(Fax)　0166-65-1821　旭川市立緑が丘小学校内",null,null,null,null,null,null,null,null,"ＦＡＸ"]
[null,null,null,null,null,"　(Tel)　0166-65-6369　旭川市立緑が丘小学校内　　",null,null,null,null,null,null,null,null,"貼る"]
[null,null,null,null,null,"振込領収書を添付の上、ＦＡＸで田中宛に送付"]
[]
[null,null,null,null,"★","旭川信用金庫　緑が丘支店　普通　口座番号　0431277",null,null,null,null,null,null,null,null,"旭川信用金庫　緑が丘支店　普通"]
[null,null,null,null,null,"旭川サッカー協会 4種登録口 代表 田中雅城",null,null,null,null,null,null,null,null,"旭川サッカー協会 4種登録口 代表 田中雅城"]
[]
[]
[]
["注)　新規及び継続登録のときに、上記の口座を用います(４月８日まで)。"]
[]
["　　　それ以降の手続きでは、すべての種別は、下記の送付先，口座をご利用下さい。申請用紙も変更になります。"]
[]
[null,null,null,null,"☆","旭川地区サッカー協会事務局 大淵",null,null,null,null,null,null,null,null,"地区協会事務局 大淵"]
[null,null,null,null,null,"(送付先) 〒070-0901 旭川市花咲町5丁目 旭川市総合体育館内"]
[null,null,null,null,null,"(Mail)afa-office@wind.ocn.ne.jp",null,null,null,null,null,null,null,null,"メール"]
[null,null,null,null,null,"(Fax)0166-51-0122"]
[null,null,null,null,null,"メールで事務局 大淵宛に送付"]
[]
[null,null,null,null,"★","旭川信用金庫　銀座支店　普通　口座番号　0459411",null,null,null,null,null,null,null,null,"旭川信用金庫　銀座支店　普通"]
[null,null,null,null,null,"旭川地区サッカー協会　登録口　代表　板木京悦　(いたききょうえつ)",null,null,null,null,null,null,null,null,"旭川地区サッカー協会　登録口　代表　板木京悦"]

{"sheet":"登録内訳","index":1,"n_rows":48,"n_cols":31,"rows_kept":48,"cut":false,"hidden":false,"merged":[[19,1,19,2],[10,0,10,2],[19,12,19,13],[17,12,17,13],[0,3,0,15],[6,0,6,2],[13,12,13,13],[13,1,13,2],[7,0,9,2],[18,1,18,2],[6,14,6,15],[9,9,9,10],[17,1,17,2],[15,0,16,0],[4,3,4,15],[5,3,5,9],[9,12,9,13],[9,3,9,4],[9,6,9,7],[5,0,5,2],[7,12,7,13],[8,9,8,15],[6,12,6,13],[9,14,9,15],[6,3,6,11],[15,12,15,13],[17,0,20,0],[20,1,20,2],[7,3,7,4],[8,6,8,7],[7,14,7,15],[16,12,16,13],[15,3,15,10],[8,3,8,4],[10,3,10,7],[10,8,10,10],[4,0,4,2],[14,14,14,15],[13,14,13,15],[14,12,14,13],[19,3,19,10],[7,6,7,7],[7,9,7,10],[17,14,17,15],[10,11,10,15],[11,0,11,15],[13,3,13,10],[19,14,19,15],[18,14,18,15],[14,1,14,2],[13,0,14,0],[17,3,17,10],[17,18,20,18],[20,14,20,15],[20,12,20,13],[23,8,23,9],[2,10,2,11],[10,18,10,29],[13,18,14,18],[5,10,5,11],[5,12,5,15],[18,12,18,13],[20,3,20,10],[15,18,16,18],[16,1,16,2],[16,14,16,15],[15,1,15,2],[15,14,15,15],[23,10,23,11],[23,5,23,7],[23,12,23,13],[21,18,21,19],[22,0,22,10],[22,12,22,13],[22,14,22,15],[21,3,21,10],[23,14,23,15],[21,0,21,2],[21,12,21,13],[21,14,21,15],[24,6,24,12],[24,13,24,15],[46,1,46,4],[46,5,46,7],[46,9,46,11],[46,12,46,15],[25,7,25,15],[34,0,34,15]]}
[null,null,null,"地区協会 サッカーチーム登録料振込内訳"]
[]
[null,null,null,null,null,null,null,null,null,null,"２０１６年",null,3,"月",31,"日"]
[]
["チ　ー　ム　名"]
["事 務 担 当 者",null,null,null,null,null,null,null,null,null,"種　　別",null,"３種・中"]
["事 務 担 当 者\n連　絡　先",null,null,null,null,null,null,null,null,null,null,null,"計",null,{"$f":"IF($M$6=D8,F8,IF($M$6=G8,I8,IF($M$6=J8,L8,IF($M$6=M8,O8,IF($M$6=D9,F9,IF($M$6=D10,F10+I10+L10+O10,IF($M$6=G10,I10+L10+O10,0)))))))+IF($M$6=J10,L10+O10,IF($M$6=M10,O10,IF($M$6=G9,I9,0)))","v":0}]
["登　録　選　手",null,null,{"$f":"U23","v":"１種・社"},null,null,{"$f":"V23","v":"１種・大"},null,null,{"$f":"W23","v":"２種・高"},null,null,{"$f":"X23","v":"３種・中"}]
[null,null,null,{"$f":"Y23","v":"４種・小"},null,null,{"$f":"AD23","v":"シ ニ ア"}]
[null,null,null,{"$f":"Z23","v":"女子一般"},null,null,{"$f":"AA23","v":"女子大学"},null,null,{"$f":"AB23","v":"女子高校"},null,null,{"$f":"AC23","v":"女子中学"}]
["監督の指導者登録番号",null,null,null,null,null,null,null,"コーチの指導者登録番号"]
["※登録手続き及び事務連絡以外には使用しないことを徹底し､厳正なる管理のもとに保管いたします。"]
[null,null,null,null,null,null,null,null,null,null,null,null,null,null,null,null,null,null,null,null,{"$f":"IF($M$6=登録について!$B$45,$M$6,\"\")","v":""},{"$f":"IF($M$6=登録について!$B$46,$M$6,\"\")","v":""},{"$f":"IF($M$6=登録について!$B$47,$M$6,\"\")","v":""},{"$f":"IF($M$6=登録について!$B$48,$M$6,\"\")","v":"３種・中"},{"$f":"IF($M$6=登録について!$B$49,$M$6,\"\")","v":""},{"$f":"IF($M$6=登録について!$B$50,$M$6,\"\")","v":""},{"$f":"IF($M$6=登録について!$B$51,$M$6,\"\")","v":""},{"$f":"IF($M$6=登録について!$B$52,$M$6,\"\")","v":""},{"$f":"IF($M$6=登録について!$B$53,$M$6,\"\")","v":""},{"$f":"IF($M$6=登録について!$B$54,$M$6,\"\")","v":""},"計"]
["旭川","団体登録費",null,null,null,null,null,null,null,null,null,"①（",{"$f":"IF(O7=0,\"\",AE14)","v":""},null,"円）",null,null,null,"旭川","団体登録費",{"$f":"IF(ISERROR(VLOOKUP(U13,登録について!$B$43:$N$54,2))=FALSE,VLOOKUP(U13,登録について!$B$43:$N$54,2,FALSE),\"\")","v":""},{"$f":"IF(ISERROR(VLOOKUP(V13,登録について!$B$43:$N$54,2))=FALSE,VLOOKUP(V13,登録について!$B$43:$N$54,2,FALSE),\"\")","v":""},{"$f":"IF(ISERROR(VLOOKUP(W13,登録について!$B$43:$N$54,2))=FALSE,VLOOKUP(W13,登録について!$B$43:$N$54,2,FALSE),\"\")","v":""},{"$f":"IF(ISERROR(VLOOKUP(X13,登録について!$B$43:$N$54,2))=FALSE,VLOOKUP(X13,登録について!$B$43:$N$54,2,FALSE),\"\")","v":8000},{"$f":"IF(ISERROR(VLOOKUP(Y13,登録について!$B$43:$N$54,2))=FALSE,VLOOKUP(Y13,登録について!$B$43:$N$54,2,FALSE),\"\")","v":""},{"$f":"IF(ISERROR(VLOOKUP(Z13,登録について!$B$43:$N$54,2))=FALSE,VLOOKUP(Z13,登録について!$B$43:$N$54,2,FALSE),\"\")","v":""},{"$f":"IF(ISERROR(VLOOKUP(AA13,登録について!$B$43:$N$54,2))=FALSE,VLOOKUP(AA13,登録について!$B$43:$N$54,2,FALSE),\"\")","v":""},{"$f":"IF(ISERROR(VLOOKUP(AB13,登録について!$B$43:$N$54,2))=FALSE,VLOOKUP(AB13,登録について!$B$43:$N$54,2,FALSE),\"\")","v":""},{"$f":"IF(ISERROR(VLOOKUP(AC13,登録について!$B$43:$N$54,2))=FALSE,VLOOKUP(AC13,登録について!$B$43:$N$54,2,FALSE),\"\")","v":""},{"$f":"IF(ISERROR(VLOOKUP(AD13,登録について!$B$43:$N$54,2))=FALSE,VLOOKUP(AD13,登録について!$B$43:$N$54,2,FALSE),\"\")","v":""},{"$f":"SUM(U14:AD14)","v":8000}]
[null,"個人登録費",null,"（",{"$f":"IF(ISERROR(VLOOKUP($M$6,登録について!$B$43:$N$54,3))=FALSE,VLOOKUP($M$6,登録について!$B$43:$N$54,3,FALSE),\"\")","v":1000},"円）","×","（",{"$f":"$O$7","v":0},"名）","＝","②（",{"$f":"IF(O7=0,0,AE15)","v":0},null,"円）",null,null,null,null,"個人登録費",{"$f":"IF(ISERROR(VLOOKUP(U13,登録について!$B$43:$N$54,3))=FALSE,VLOOKUP(U13,登録について!$B$43:$N$54,3,FALSE)*F8,\"\")","v":""},{"$f":"IF(ISERROR(VLOOKUP(V13,登録について!$B$43:$N$54,3))=FALSE,VLOOKUP(V13,登録について!$B$43:$N$54,3,FALSE)*I8,\"\")","v":""},{"$f":"IF(ISERROR(VLOOKUP(W13,登録について!$B$43:$N$54,3))=FALSE,VLOOKUP(W13,登録について!$B$43:$N$54,3,FALSE)*L8,\"\")","v":""},{"$f":"IF(ISERROR(VLOOKUP(X13,登録について!$B$43:$N$54,3))=FALSE,VLOOKUP(X13,登録について!$B$43:$N$54,3,FALSE)*O8,\"\")","v":0},{"$f":"IF(ISERROR(VLOOKUP(Y13,登録について!$B$43:$N$54,3))=FALSE,VLOOKUP(Y13,登録について!$B$43:$N$54,3,FALSE)*F9,\"\")","v":""},{"$f":"IF(ISERROR(VLOOKUP(Z13,登録について!$B$43:$N$54,3))=FALSE,VLOOKUP(Z13,登録について!$B$43:$N$54,3,FALSE)*$F$10,\"\")","v":""},{"$f":"IF(ISERROR(VLOOKUP(AA13,登録について!$B$43:$N$54,3))=FALSE,VLOOKUP(AA13,登録について!$B$43:$N$54,3,FALSE)*$I$10,IF($M$6=$D$10,VLOOKUP($G$10,登録について!$B$43:$N$54,3,FALSE)*$I$10,\"\"))","v":""},{"$f":"IF(ISERROR(VLOOKUP(AB13,登録について!$B$43:$N$54,3))=FALSE,VLOOKUP(AB13,登録について!$B$43:$N$54,3,FALSE)*$L$10,IF($M$6=$D$10,VLOOKUP($J$10,登録について!$B$43:$N$54,3,FALSE)*$L$10,IF($M$6=$G$10,VLOOKUP($J$10,登録について!$B$43:$N$54,3,FALSE)*$L$10,\"\")))","v":""},{"$f":"IF(ISERROR(VLOOKUP(AC13,登録について!$B$43:$N$54,3))=FALSE,VLOOKUP(AC13,登録について!$B$43:$N$54,3,FALSE)*$O$10,IF($M$6=$D$10,VLOOKUP($M$10,登録について!$B$43:$N$54,3,FALSE)*$O$10,IF($M$6=$G$10,VLOOKUP($M$10,登録について!$B$43:$N$54,3,FALSE)*$O$10,IF($M$6=$J$10,VLOOKUP($M$10,登録について!$B$43:$N$54,3,FALSE)*$O$10,\"\"))))","v":""},{"$f":"IF(ISERROR(VLOOKUP(AD13,登録について!$B$43:$N$54,3))=FALSE,VLOOKUP(AD13,登録について!$B$43:$N$54,3,FALSE)*I9,\"\")","v":""},0]
["北海道","団体登録費",null,null,null,null,null,null,null,null,null,"③（",{"$f":"IF(O7=0,\"\",AE16)","v":""},null,"円）",null,null,null,"北海道","団体登録費",{"$f":"IF(ISERROR(VLOOKUP(U13,登録について!$B$43:$N$54,5))=FALSE,VLOOKUP(U13,登録について!$B$43:$N$54,5,FALSE),\"\")","v":""},{"$f":"IF(ISERROR(VLOOKUP(V13,登録について!$B$43:$N$54,5))=FALSE,VLOOKUP(V13,登録について!$B$43:$N$54,5,FALSE),\"\")","v":""},{"$f":"IF(ISERROR(VLOOKUP(W13,登録について!$B$43:$N$54,5))=FALSE,VLOOKUP(W13,登録について!$B$43:$N$54,5,FALSE),\"\")","v":""},{"$f":"IF(ISERROR(VLOOKUP(X13,登録について!$B$43:$N$54,5))=FALSE,VLOOKUP(X13,登録について!$B$43:$N$54,5,FALSE),\"\")","v":3000},{"$f":"IF(ISERROR(VLOOKUP(Y13,登録について!$B$43:$N$54,5))=FALSE,VLOOKUP(Y13,登録について!$B$43:$N$54,5,FALSE),\"\")","v":""},{"$f":"IF(ISERROR(VLOOKUP(Z13,登録について!$B$43:$N$54,5))=FALSE,VLOOKUP(Z13,登録について!$B$43:$N$54,5,FALSE),\"\")","v":""},{"$f":"IF(ISERROR(VLOOKUP(AA13,登録について!$B$43:$N$54,5))=FALSE,VLOOKUP(AA13,登録について!$B$43:$N$54,5,FALSE),\"\")","v":""},{"$f":"IF(ISERROR(VLOOKUP(AB13,登録について!$B$43:$N$54,5))=FALSE,VLOOKUP(AB13,登録について!$B$43:$N$54,5,FALSE),\"\")","v":""},{"$f":"IF(ISERROR(VLOOKUP(AC13,登録について!$B$43:$N$54,5))=FALSE,VLOOKUP(AC13,登録について!$B$43:$N$54,5,FALSE),\"\")","v":""},{"$f":"IF(ISERROR(VLOOKUP(AD13,登録について!$B$43:$N$54,5))=FALSE,VLOOKUP(AD13,登録について!$B$43:$N$54,5,FALSE),\"\")","v":""},3000]
[null,"個人登録費",null,"（",{"$f":"IF(ISERROR(VLOOKUP($M$6,登録について!$B$43:$N$54,6))=FALSE,VLOOKUP($M$6,登録について!$B$43:$N$54,6,FALSE),\"\")","v":200},"円）","×","（",{"$f":"$O$7","v":0},"名）","＝","④（",{"$f":"IF(O7=0,\"\",AE17)","v":""},null,"円）",null,null,null,null,"個人登録費",{"$f":"IF(ISERROR(VLOOKUP(U13,登録について!$B$43:$N$54,6))=FALSE,VLOOKUP(U13,登録について!$B$43:$N$54,6,FALSE)*F8,\"\")","v":""},{"$f":"IF(ISERROR(VLOOKUP(V13,登録について!$B$43:$N$54,6))=FALSE,VLOOKUP(V13,登録について!$B$43:$N$54,6,FALSE)*I8,\"\")","v":""},{"$f":"IF(ISERROR(VLOOKUP(W13,登録について!$B$43:$N$54,6))=FALSE,VLOOKUP(W13,登録について!$B$43:$N$54,6,FALSE)*L8,\"\")","v":""},{"$f":"IF(ISERROR(VLOOKUP(X13,登録について!$B$43:$N$54,6))=FALSE,VLOOKUP(X13,登録について!$B$43:$N$54,6,FALSE)*O8,\"\")","v":0},{"$f":"IF(ISERROR(VLOOKUP(Y13,登録について!$B$43:$N$54,6))=FALSE,VLOOKUP(Y13,登録について!$B$43:$N$54,6,FALSE)*F9,\"\")","v":""},{"$f":"IF(ISERROR(VLOOKUP(Z13,登録について!$B$43:$N$54,6))=FALSE,VLOOKUP(Z13,登録について!$B$43:$N$54,6,FALSE)*$F$10,\"\")","v":""},{"$f":"IF(ISERROR(VLOOKUP(AA13,登録について!$B$43:$N$54,6))=FALSE,VLOOKUP(AA13,登録について!$B$43:$N$54,6,FALSE)*$I$10,IF($M$6=$D$10,VLOOKUP($G$10,登録について!$B$43:$N$54,6,FALSE)*$I$10,\"\"))","v":""},{"$f":"IF(ISERROR(VLOOKUP(AB13,登録について!$B$43:$N$54,6))=FALSE,VLOOKUP(AB13,登録について!$B$43:$N$54,6,FALSE)*$L$10,IF($M$6=$D$10,VLOOKUP($J$10,登録について!$B$43:$N$54,6,FALSE)*$L$10,IF($M$6=$G$10,VLOOKUP($J$10,登録について!$B$43:$N$54,6,FALSE)*$L$10,\"\")))","v":""},{"$f":"IF(ISERROR(VLOOKUP(AC13,登録について!$B$43:$N$54,6))=FALSE,VLOOKUP(AC13,登録について!$B$43:$N$54,6,FALSE)*$O$10,IF($M$6=$D$10,VLOOKUP($M$10,登録について!$B$43:$N$54,6,FALSE)*$O$10,IF($M$6=$G$10,VLOOKUP($M$10,登録について!$B$43:$N$54,6,FALSE)*$O$10,IF($M$6=$J$10,VLOOKUP($M$10,登録について!$B$43:$N$54,6,FALSE)*$O$10,\"\"))))","v":""},{"$f":"IF(ISERROR(VLOOKUP(AD13,登録について!$B$43:$N$54,6))=FALSE,VLOOKUP(AD13,登録について!$B$43:$N$54,6,FALSE)*I9,\"\")","v":""},0]
["日　本","団体登録費",null,null,null,null,null,null,null,null,null,"⑤（",{"$f":"IF(O7=0,\"\",AE18)","v":""},null,"円）",null,null,null,"日　本","団体登録費",{"$f":"IF(ISERROR(VLOOKUP(U13,登録について!$B$43:$N$54,8))=FALSE,VLOOKUP(U13,登録について!$B$43:$N$54,8,FALSE),\"\")","v":""},{"$f":"IF(ISERROR(VLOOKUP(V13,登録について!$B$43:$N$54,8))=FALSE,VLOOKUP(V13,登録について!$B$43:$N$54,8,FALSE),\"\")","v":""},{"$f":"IF(ISERROR(VLOOKUP(W13,登録について!$B$43:$N$54,8))=FALSE,VLOOKUP(W13,登録について!$B$43:$N$54,8,FALSE),\"\")","v":""},{"$f":"IF(ISERROR(VLOOKUP(X13,登録について!$B$43:$N$54,8))=FALSE,VLOOKUP(X13,登録について!$B$43:$N$54,8,FALSE),\"\")","v":2500},{"$f":"IF(ISERROR(VLOOKUP(Y13,登録について!$B$43:$N$54,8))=FALSE,VLOOKUP(Y13,登録について!$B$43:$N$54,8,FALSE),\"\")","v":""},{"$f":"IF(ISERROR(VLOOKUP(Z13,登録について!$B$43:$N$54,8))=FALSE,VLOOKUP(Z13,登録について!$B$43:$N$54,8,FALSE),\"\")","v":""},{"$f":"IF(ISERROR(VLOOKUP(AA13,登録について!$B$43:$N$54,8))=FALSE,VLOOKUP(AA13,登録について!$B$43:$N$54,8,FALSE),\"\")","v":""},{"$f":"IF(ISERROR(VLOOKUP(AB13,登録について!$B$43:$N$54,8))=FALSE,VLOOKUP(AB13,登録について!$B$43:$N$54,8,FALSE),\"\")","v":""},{"$f":"IF(ISERROR(VLOOKUP(AC13,登録について!$B$43:$N$54,8))=FALSE,VLOOKUP(AC13,登録について!$B$43:$N$54,8,FALSE),\"\")","v":""},{"$f":"IF(ISERROR(VLOOKUP(AD13,登録について!$B$43:$N$54,8))=FALSE,VLOOKUP(AD13,登録について!$B$43:$N$54,8,FALSE),\"\")","v":""},2500]
[null,"個人登録費",null,"（",{"$f":"IF(ISERROR(VLOOKUP($M$6,登録について!$B$43:$N$54,9))=FALSE,VLOOKUP($M$6,登録について!$B$43:$N$54,9,FALSE),\"\")","v":700},"円）","×","（",{"$f":"$O$7","v":0},"名）","＝","⑥（",{"$f":"IF(O7=0,\"\",AE19)","v":""},null,"円）",null,null,null,null,"個人登録費",{"$f":"IF(ISERROR(VLOOKUP(U13,登録について!$B$43:$N$54,9))=FALSE,VLOOKUP(U13,登録について!$B$43:$N$54,9,FALSE)*F8,\"\")","v":""},{"$f":"IF(ISERROR(VLOOKUP(V13,登録について!$B$43:$N$54,9))=FALSE,VLOOKUP(V13,登録について!$B$43:$N$54,9,FALSE)*I8,\"\")","v":""},{"$f":"IF(ISERROR(VLOOKUP(W13,登録について!$B$43:$N$54,9))=FALSE,VLOOKUP(W13,登録について!$B$43:$N$54,9,FALSE)*L8,\"\")","v":""},{"$f":"IF(ISERROR(VLOOKUP(X13,登録について!$B$43:$N$54,9))=FALSE,VLOOKUP(X13,登録について!$B$43:$N$54,9,FALSE)*O8,\"\")","v":0},{"$f":"IF(ISERROR(VLOOKUP(Y13,登録について!$B$43:$N$54,9))=FALSE,VLOOKUP(Y13,登録について!$B$43:$N$54,9,FALSE)*F9,\"\")","v":""},{"$f":"IF(ISERROR(VLOOKUP(Z13,登録について!$B$43:$N$54,9))=FALSE,VLOOKUP(Z13,登録について!$B$43:$N$54,9,FALSE)*$F$10,\"\")","v":""},{"$f":"IF(ISERROR(VLOOKUP(AA13,登録について!$B$43:$N$54,9))=FALSE,VLOOKUP(AA13,登録について!$B$43:$N$54,9,FALSE)*$I$10,IF($M$6=$D$10,VLOOKUP($G$10,登録について!$B$43:$N$54,9,FALSE)*$I$10,\"\"))","v":""},{"$f":"IF(ISERROR(VLOOKUP(AB13,登録について!$B$43:$N$54,9))=FALSE,VLOOKUP(AB13,登録について!$B$43:$N$54,9,FALSE)*$L$10,IF($M$6=$D$10,VLOOKUP(J10,登録について!$B$43:$N$54,9,FALSE)*$L$10,IF($M$6=$G$10,VLOOKUP(J10,登録について!$B$43:$N$54,9,FALSE)*$L$10,\"\")))","v":""},{"$f":"IF(ISERROR(VLOOKUP(AC13,登録について!$B$43:$N$54,9))=FALSE,VLOOKUP(AC13,登録について!$B$43:$N$54,9,FALSE)*$O$10,IF($M$6=$D$10,VLOOKUP($M$10,登録について!$B$43:$N$54,9,FALSE)*$O$10,IF($M$6=$G$10,VLOOKUP($M$10,登録について!$B$43:$N$54,9,FALSE)*$O$10,IF($M$6=$J10,VLOOKUP($M$10,登録について!$B$43:$N$54,9,FALSE)*$O$10,\"\"))))","v":""},{"$f":"IF(ISERROR(VLOOKUP(AD13,登録について!$B$45:$N$54,9))=FALSE,VLOOKUP(AD13,登録について!$B$45:$N$54,9,FALSE)*I9,\"\")","v":""},0]
[null,"ＪＦＡ購読料",null,null,null,null,null,null,null,null,null,"⑦（",{"$f":"IF(O7=0,\"\",AE20)","v":""},null,"円）",null,null,null,null,"ＪＦＡ購読料",{"$f":"IF(ISERROR(VLOOKUP(U13,登録について!$B$43:$N$54,11))=FALSE,VLOOKUP(U13,登録について!$B$43:$N$54,11,FALSE),\"\")","v":""},{"$f":"IF(ISERROR(VLOOKUP(V13,登録について!$B$43:$N$54,11))=FALSE,VLOOKUP(V13,登録について!$B$43:$N$54,11,FALSE),\"\")","v":""},{"$f":"IF(ISERROR(VLOOKUP(W13,登録について!$B$43:$N$54,11))=FALSE,VLOOKUP(W13,登録について!$B$43:$N$54,11,FALSE),\"\")","v":""},{"$f":"IF(ISERROR(VLOOKUP(X13,登録について!$B$43:$N$54,11))=FALSE,VLOOKUP(X13,登録について!$B$43:$N$54,11,FALSE),\"\")","v":5000},{"$f":"IF(ISERROR(VLOOKUP(Y13,登録について!$B$43:$N$54,11))=FALSE,VLOOKUP(Y13,登録について!$B$43:$N$54,11,FALSE),\"\")","v":""},{"$f":"IF(ISERROR(VLOOKUP(Z13,登録について!$B$43:$N$54,11))=FALSE,VLOOKUP(Z13,登録について!$B$43:$N$54,11,FALSE),\"\")","v":""},{"$f":"IF(ISERROR(VLOOKUP(AA13,登録について!$B$43:$N$54,11))=FALSE,VLOOKUP(AA13,登録について!$B$43:$N$54,11,FALSE),\"\")","v":""},{"$f":"IF(ISERROR(VLOOKUP(AB13,登録について!$B$43:$N$54,11))=FALSE,VLOOKUP(AB13,登録について!$B$43:$N$54,11,FALSE),\"\")","v":""},{"$f":"IF(ISERROR(VLOOKUP(AC13,登録について!$B$43:$N$54,11))=FALSE,VLOOKUP(AC13,登録について!$B$43:$N$54,11,FALSE),\"\")","v":""},{"$f":"IF(ISERROR(VLOOKUP(AD13,登録について!$B$43:$N$54,11))=FALSE,VLOOKUP(AD13,登録について!$B$43:$N$54,11,FALSE),\"\")","v":""},5000]
[null,"監督登録料",null,null,null,null,null,null,null,null,null,"⑧（",{"$f":"IF(O7=0,\"\",AE21)","v":""},null,"円）",null,null,null,null,"監督登録料",{"$f":"IF(ISERROR(VLOOKUP(U13,登録について!$B$43:$N$54,12))=FALSE,IF(LEN($D$11)<9,VLOOKUP(U13,登録について!$B$43:$N$54,12,FALSE),0),\"\")","v":""},{"$f":"IF(ISERROR(VLOOKUP(V13,登録について!$B$43:$N$54,12))=FALSE,IF(LEN($D$11)<9,VLOOKUP(V13,登録について!$B$43:$N$54,12,FALSE),0),\"\")","v":""},{"$f":"IF(ISERROR(VLOOKUP(W13,登録について!$B$43:$N$54,12))=FALSE,IF(LEN($D$11)<9,VLOOKUP(W13,登録について!$B$43:$N$54,12,FALSE),0),\"\")","v":""},{"$f":"IF(ISERROR(VLOOKUP(X13,登録について!$B$43:$N$54,12))=FALSE,IF(LEN($D$11)<9,VLOOKUP(X13,登録について!$B$43:$N$54,12,FALSE),0),\"\")","v":2000},{"$f":"IF(ISERROR(VLOOKUP(Y13,登録について!$B$43:$N$54,12))=FALSE,IF(LEN($D$11)<9,VLOOKUP(Y13,登録について!$B$43:$N$54,12,FALSE),0),\"\")","v":""},{"$f":"IF(ISERROR(VLOOKUP(Z13,登録について!$B$43:$N$54,12))=FALSE,IF(LEN($D$11)<9,VLOOKUP(Z13,登録について!$B$43:$N$54,12,FALSE),0),\"\")","v":""},{"$f":"IF(ISERROR(VLOOKUP(AA13,登録について!$B$43:$N$54,12))=FALSE,IF(LEN($D$11)<9,VLOOKUP(AA13,登録について!$B$43:$N$54,12,FALSE),0),\"\")","v":""},{"$f":"IF(ISERROR(VLOOKUP(AB13,登録について!$B$43:$N$54,12))=FALSE,IF(LEN($D$11)<9,VLOOKUP(AB13,登録について!$B$43:$N$54,12,FALSE),0),\"\")","v":""},{"$f":"IF(ISERROR(VLOOKUP(AC13,登録について!$B$43:$N$54,12))=FALSE,IF(LEN($D$11)<9,VLOOKUP(AC13,登録について!$B$43:$N$54,12,FALSE),0),\"\")","v":""},{"$f":"IF(ISERROR(VLOOKUP(AD13,登録について!$B$43:$N$54,12))=FALSE,IF(LEN($D$11)<9,VLOOKUP(AD13,登録について!$B$43:$N$54,12,FALSE),0),\"\")","v":""},2000]
["その他",null,null,"★高校･高専(高校年鑑+ﾃｸﾆｶﾙﾚﾎﾟｰﾄ)　★３種事業委員会運営費",null,null,null,null,null,null,null,"⑨（",{"$f":"IF(O7=0,\"\",AE22)","v":""},null,"円）",null,null,null,"高校サッカー年鑑代　",null,{"$f":"IF(ISERROR(VLOOKUP(U13,登録について!$B$43:$N$54,13))=FALSE,登録について!$N45,\"\")","v":""},{"$f":"IF(ISERROR(VLOOKUP(V13,登録について!$B$43:$N$54,13))=FALSE,登録について!$N46,\"\")","v":""},{"$f":"IF(ISERROR(VLOOKUP(W13,登録について!$B$43:$N$54,13))=FALSE,登録について!$N47,\"\")","v":""},{"$f":"IF(ISERROR(VLOOKUP(X13,登録について!$B$43:$N$54,13))=FALSE,登録について!$N48,\"\")","v":2000},{"$f":"IF(ISERROR(VLOOKUP(Y13,登録について!$B$43:$N$54,13))=FALSE,登録について!$N49,\"\")","v":""},{"$f":"IF(ISERROR(VLOOKUP(Z13,登録について!$B$43:$N$54,13))=FALSE,登録について!$N50,\"\")","v":""},{"$f":"IF(ISERROR(VLOOKUP(AA13,登録について!$B$43:$N$54,13))=FALSE,登録について!$N51,\"\")","v":""},{"$f":"IF(ISERROR(VLOOKUP(AB13,登録について!$B$43:$N$54,13))=FALSE,登録について!$N52,\"\")","v":""},{"$f":"IF(ISERROR(VLOOKUP(AC13,登録について!$B$43:$N$54,13))=FALSE,登録について!$N53,\"\")","v":""},{"$f":"IF(ISERROR(VLOOKUP(AD13,登録について!$B$43:$N$54,13))=FALSE,登録について!$N54,\"\")","v":""},2000]
[null,null,null,null,null,null,null,null,null,null,null,"⑩【",{"$f":"IF(O7=0,\"\",SUM(M14:M22))","v":""},null,"円】",null,null,null,null,null,"１種・社","１種・大","２種・高","３種・中","４種・小","女子一般","女子大学","女子高校","女子中学","シ ニ ア"]
[null,null,null,null,null,{"$f":"IF(I24=0,\"\",\"団体登録費計\")","v":""},null,null,{"$f":"IF(O7=0,0,AE14+AE16+AE18+AE20+AE21+AE22)","v":0},null,{"$f":"IF(M24=0,\"\",\"個人登録費計\")","v":""},null,{"$f":"IF(O7=0,0,AE15+AE17+AE19)","v":0},null,{"$f":"O7","v":0},null,null,null,null,null,{"$f":"登録について!O94","v":"旭川信用金庫  本店  普通"},{"$f":"登録について!O105","v":"旭川信用金庫　銀座支店　普通"},{"$f":"登録について!O115","v":"旭川信用金庫　緑が丘支店　普通"},{"$f":"登録について!O127","v":"旭川信用金庫  東旭川支店  普通"},{"$f":"登録について!O138","v":"旭川信用金庫　緑が丘支店　普通"},{"$f":"登録について!$O$105","v":"旭川信用金庫　銀座支店　普通"},{"$f":"登録について!$O$105","v":"旭川信用金庫　銀座支店　普通"},{"$f":"登録について!$O$105","v":"旭川信用金庫　銀座支店　普通"},{"$f":"登録について!$O$105","v":"旭川信用金庫　銀座支店　普通"},{"$f":"登録について!$O$105","v":"旭川信用金庫　銀座支店　普通"}]
[null,"上記⑩を",4,"月",1,"日付で",{"$f":"IF(ISERROR(HLOOKUP(M6,U23:AD28,2))=FALSE,HLOOKUP(M6,U23:AD28,2,FALSE),\"\")","v":"旭川信用金庫  東旭川支店  普通"},null,null,null,null,null,null,"に送金しました。",null,null,null,null,null,null,{"$f":"登録について!O95","v":"旭川社会人サッカー連盟　代表　加藤文隆"},{"$f":"登録について!O106","v":"旭川地区サッカー協会　登録口　代表　板木京悦"},{"$f":"登録について!O116","v":"旭川地区サッカー協会　２種委員会　代表　遠藤祥悦"},{"$f":"登録について!O128","v":"旭川地区サッカー協会第３種事業委員会　則末俊介"},{"$f":"登録について!O139","v":"旭川サッカー協会 4種登録口 代表 田中雅城"},{"$f":"登録について!$O$106","v":"旭川地区サッカー協会　登録口　代表　板木京悦"},{"$f":"登録について!$O$106","v":"旭川地区サッカー協会　登録口　代表　板木京悦"},{"$f":"登録について!$O$106","v":"旭川地区サッカー協会　登録口　代表　板木京悦"},{"$f":"登録について!$O$106","v":"旭川地区サッカー協会　登録口　代表　板木京悦"},{"$f":"登録について!$O$106","v":"旭川地区サッカー協会　登録口　代表　板木京悦"}]
[null,null,null,null,null,null,null,{"$f":"IF(ISERROR(HLOOKUP(M6,U23:AD28,3))=FALSE,HLOOKUP(M6,U23:AD28,3,FALSE),\"\")","v":"旭川地区サッカー協会第３種事業委員会　則末俊介"},null,null,null,null,null,null,null,null,null,null,null,null,{"$f":"登録について!O90","v":"メール"},{"$f":"登録について!O101","v":"メール"},{"$f":"登録について!O111","v":"ＦＡＸ"},{"$f":"登録について!O122","v":"メール"},{"$f":"登録について!O134","v":"ＦＡＸ"},{"$f":"登録について!$O$101","v":"メール"},{"$f":"登録について!$O$101","v":"メール"},{"$f":"登録について!$O$101","v":"メール"},{"$f":"登録について!$O$101","v":"メール"},{"$f":"登録について!$O$101","v":"メール"}]
[null,null,null,null,null,null,null,null,null,null,null,null,null,null,null,null,null,null,null,null,{"$f":"登録について!O91","v":0},{"$f":"登録について!O102","v":0},{"$f":"登録について!O112","v":"貼る"},{"$f":"登録について!O123","v":0},{"$f":"登録について!O135","v":"貼る"},{"$f":"登録について!$O$102","v":0},{"$f":"登録について!$O$102","v":0},{"$f":"登録について!$O$102","v":0},{"$f":"登録について!$O$102","v":0},{"$f":"登録について!$O$102","v":0}]
[null,null,null,null,null,null,null,null,null,null,null,null,null,null,null,null,null,null,null,null,{"$f":"登録について!O89","v":"加　藤　文　隆"},{"$f":"登録について!O100","v":"地区協会事務局 大淵"},{"$f":"登録について!O110","v":"遠　藤　祥　悦"},{"$f":"登録について!O121","v":"則　末　俊　介"},{"$f":"登録について!O133","v":"田　中　雅　城"},{"$f":"登録について!$O$100","v":"地区協会事務局 大淵"},{"$f":"登録について!$O$100","v":"地区協会事務局 大淵"},{"$f":"登録について!$O$100","v":"地区協会事務局 大淵"},{"$f":"登録について!$O$100","v":"地区協会事務局 大淵"},{"$f":"登録について!$O$100","v":"地区協会事務局 大淵"}]
[]
[]
[]
[]
[]
[]
[{"$f":"IF(ISERROR(HLOOKUP($M$6,$U$23:$AD$28,5)=\"貼る\")=FALSE,IF(HLOOKUP($M$6,$U$23:$AD$28,5)=\"貼る\",\"振込領収書のコピーを添付して下さい。\",\"\"),\"\")","v":""}]
[]
[]
[]
[]
[]
[]
[]
[]
[]
[]
[]
[null,"この登録料振込内訳は、",null,null,null,{"$f":"IF(ISERROR(HLOOKUP(M6,U23:AD28,6))=FALSE,HLOOKUP(M6,U23:AD28,6,FALSE),\"\")","v":"則　末　俊　介"},null,null,"宛に",{"$f":"IF(ISERROR(HLOOKUP(M6,U23:AD28,4))=FALSE,HLOOKUP(M6,U23:AD28,4,FALSE),\"\")","v":"メール"},null,null,"で送付します。"]
[null,null,null,null,null,null,null,null,null,null,null,null,null,null,null,"注)　この用紙は、４月８日(金)まで使用できます。５月１日以降の追加登録等については、用紙および送付先が変更になります。"]